[Event "Czech Championship U20 Open 2023"]
[Site "Jaromerice nad Rokytnou"]
[Date "2023.03.15"]
[Round "7.5"]
[White "Mica, Marek"]
[Black "Svanda, Ondrej"]
[Result "1/2-1/2"]
[ECO "A04"]
[WhiteElo "2248"]
[BlackElo "2366"]
[Annotator "TA"]
[PlyCount "168"]
[EventDate "2023.03.10"]
[EventType "tourn"]
[EventCountry "CZE"]
[SourceTitle "playchess.com"]
[Source "ChessBase"]
[SourceQuality "1"]
[TimeControl "40/5400+30:1800+30"]

{[%evp 20,167,4,13,31,25,22,29,34,22,56,65,50,44,45,24,35,50,41,24,39,4,25,35,32,23,32,31,33,17,67,54,58,50,58,26,100,20,3,85,164,99,103,-11,-7,-6,-22,-96,-89,-208,-41,-29,0,-102,-97,-97,-97,-93,-85,-120,-68,-106,-106,-100,-81,-81,-89,-127,-116,-115,-102,-97,-53,-217,-216,-217,-217,-265,-202,-253,-202,-202,-202,-202,-202,-202,-202,-202,-202,-202,-202,-202,-202,-202,-202,-202,-202,-202,-202,-202,-202,-202,-202,-202,-202,-202,-202,-202,-202,-202,-202,-202,-202,-202,-202,-202,-202,-202,0,0,0,0,0,0,0,0,0,0,0,0,0,0,0,0,0,0,0,0,0,0,0,0,0,0,0,0,0,0,0,0]} 1. Nf3 {[%emt 0:00:06]} c5 {[%emt 0:00:59]} 2. c4 {[%emt 0:00:15]} g6 {[%emt 0:04:44]} 3. d4 {[%emt 0:02:23]} cxd4 {[%emt 0:00:06]} 4. Nxd4 {[%emt 0:00:12]} Nf6 {[%emt 0:00:23][%cal Bg8f6,Bf6d7,Bd7c5,Bc5e6,Be6d4][%mdl 32]} 5. Nc3 {[%emt 0:01:14]} Nc6 {[%emt 0:00:05]} 6. Nc2 {[%emt 0:02:23]} Bg7 {[%emt 0:00:19]} 7. e4 {[%emt 0:00:26]} d6 {[%emt 0:00:01]} 8. Be2 {[%emt 0:00:09]} Nd7 {[%emt 0:00:06]} 9. Bd2 {[%emt 0:02:04]} O-O {[%emt 0:00:55]} 10. O-O {[%emt 0:00:20]} Nc5 {[%emt 0:00:04]} 11. f3 {[%emt 0:03:03]} f5 {[%emt 0:00:30] B37: Sicilian: Maroczy Bind with 5...Bg7, sidelines.} 12. b4 {[%emt 0:00:19]} Ne6 {[%emt 0:01:13]} 13. exf5 {[%emt 0:00:42]} gxf5 {[%emt 0:00:40] White has an edge.} 14. Rb1 {[%emt 0:03:37]} Ncd4 {[%emt 0:04:52]} 15. Nxd4 {[%emt 0:03:31]} Nxd4 {[%emt 0:00:56]} 16. Bd3 {[%emt 0:03:41] [#]} e6 $146 {[%emt 0:08:29]} ({Predecessor:} 16... e5 17. Kh1 Be6 18. Ne2 Nc6 19. b5 Ne7 20. Bb4 Rc8 21. Rc1 Rf7 22. a4 d5 23. Bxe7 Rxe7 24. cxd5 Rxc1 25. Qxc1 Qxd5 {1-0 Sanchez,R (1966)-Weetik,V (2423) Titled Tuesday intern op 23rd Aug Late blitz 2022 (11)}) 17. Qc1 {[%emt 0:06:34]} Qf6 {[%emt 0:04:37]} 18. Kh1 {[%emt 0:02:12]} Bd7 {[%emt 0:02:58]} 19. Bg5 {[%emt 0:02:38]} Qf7 {[%emt 0:04:48]} 20. Bh6 {[%emt 0:01:08]} Rac8 {[%emt 0:06:38][%cal Ob7b5]} 21. Bxg7 {[%emt 0:01:37]} Qxg7 {[%emt 0:00:01]} 22. Qd2 {[%emt 0:00:44]} e5 {[%emt 0:11:40]} 23. Ne2 {[%emt 0:09:46]} Nxe2 {[%emt 0:00:01]} 24. Bxe2 {[%emt 0:00:47]} Rf6 {[%emt 0:00:02]} (24... Qe7 $1 $11) 25. Qd5+ $14 {[%emt 0:11:42]} Kh8 {[%emt 0:00:00]} 26. Qxb7 {[%emt 0:00:46]} Rg8 {[%emt 0:00:07][%csl Gg8][%cal Rg7g2]} 27. Rf2 {[%emt 0:00:27] Active counter play!} (27. Qxa7 $2 Qxg2#) (27. g3 $5 {[%cal Rb7a7]}) 27... Rg6 {[%emt 0:07:40]} (27... Rh6 $1 $11 {keeps the balance.} 28. Kg1 (28. Qxa7 $2 Qg3 $19) 28... e4 29. fxe4 Qe5) 28. Bf1 {[%emt 0:08:15]} (28. Qxa7 $2 Rxg2 29. h4 Rg1+ 30. Rxg1 Qxg1#) (28. g3 $16) 28... Rh6 $1 $40 {[%emt 0:02:14][%mdl 128] Black is up to no good.} 29. Kg1 {[%emt 0:00:54]} (29. Qxa7 $2 Qg3 30. h3 Rxh3+ 31. gxh3 Qg1#) 29... f4 {[%emt 0:00:00]} (29... Rh4 $16 {was worth a try.}) 30. c5 {[%emt 0:02:55]} ({Don't take} 30. Qxa7 $6 Qg6 $14) (30. Bd3 $18) 30... Qg6 $16 {[%emt 0:03:10] [#] White must now prevent ...Bc8.} 31. Qxd7 {[%emt 0:08:45]} (31. Re1 $1 $16 Bc8 32. Qd5) 31... Qxb1 $11 {[%emt 0:00:03]} 32. c6 {[%emt 0:00:17] Hoping for b5. The board is on fire.} Qxb4 {[%emt 0:12:22]} 33. Qxa7 {[%emt 0:06:14]} (33. c7 $1 $11 Qc5 34. Bd3) 33... Qc3 $17 {[%emt 0:09:03]} 34. Qa4 {[%emt 0:02:13]} (34. Qd7 $17) 34... Qc5 $2 {[%emt 0:00:12]} ({Better is} 34... d5 $19 35. Qb5 Qxc6) 35. Qc2 $15 {[%emt 0:02:26]} Qa5 {[%emt 0:06:47]} 36. Qc4 {[%emt 0:04:45]} ({Don't blunder} 36. c7 $2 Rc8 37. Qd2 Qxc7 $19) (36. a4 $11 {remains equal.}) 36... d5 $17 {[%emt 0:04:59]} 37. Qb5 {[%emt 0:00:50]} Qc3 {[%emt 0:02:06]} 38. Qxd5 {[%emt 0:00:32][%cal Of2c2]} Rxc6 {[%emt 0:00:03]} 39. Qe4 {[%emt 0:02:25][%cal Of2c2]} Rcg6 {[%emt 0:01:09]} (39... Rd6 $17 40. Rc2 Qd4+ 41. Qxd4 Rxd4) 40. a4 {[%emt 0:01:13]} Qc5 {[%emt 0:00:01]} 41. Qc2 {[%emt 0:31:57]} Rc6 {[%emt 0:07:30]} 42. Qxc5 {[%emt 0:00:00]} Rxc5 {[%emt 0:00:09][%mdl 4096] Endgame KRR-KRB} 43. Rb2 {[%emt 0:00:00]} Rgc8 {[%emt 0:01:35]} 44. Bd3 {[%emt 0:00:00]} Rc3 {[%emt 0:00:39][%cal Bc5c3,Bc3a3,Ba3a1][%mdl 32]} 45. Be4 {[%emt 0:00:00]} Ra3 {[%emt 0:00:32]} 46. h4 $2 {[%emt 0:00:00]} ({White should try} 46. g4 $15) 46... Rc1+ $19 {[%emt 0:02:43]} (46... Rxa4 47. Rb7 $15) 47. Kh2 {[%emt 0:00:00] [#]} Raa1 $1 {[%emt 0:03:21][%csl Ga1][%cal Rc1h1]} (47... Rxa4 48. Rb7 $15) 48. g4 {[%emt 0:00:00]} Rh1+ {[%emt 0:03:18]} ({Stronger than} 48... Rxa4 49. g5 $17) 49. Kg2 {[%emt 0:00:00]} Rxh4 {[%emt 0:00:01]} 50. Rb8+ {[%emt 0:00:00]} Kg7 {[%emt 0:00:03]} 51. Rb7+ {[%emt 0:00:00]} Kf6 {[%emt 0:00:08] Strongly threatening ...Rah1.} 52. Rxh7 {[%emt 0:00:00]} Rxh7 {[%emt 0:00:11]} 53. Bxh7 {[%emt 0:00:00] KR-KB} Kg5 {[%emt 0:00:01]} 54. Be4 {[%emt 0:00:00]} Rxa4 {[%emt 0:00:14]} 55. Kh3 {[%emt 0:00:00]} Rb4 {[%emt 0:00:43]} 56. Bd5 {[%emt 0:00:00]} Rb8 {[%emt 0:01:13]} 57. Be4 {[%emt 0:00:00]} Rh8+ {[%emt 0:00:17]} 58. Kg2 {[%emt 0:00:00]} Kh4 {[%emt 0:00:21]} 59. Kf2 {[%emt 0:00:00]} Rd8 {[%emt 0:00:24]} 60. Ke2 {[%emt 0:00:00]} Kg3 {[%emt 0:00:38]} 61. g5 {[%emt 0:00:00]} Kh4 {[%emt 0:01:06]} 62. g6 {[%emt 0:00:00]} Kg5 {[%emt 0:00:01]} 63. Kf2 {[%emt 0:00:00]} Kf6 {[%emt 0:01:25]} 64. Ke2 {[%emt 0:02:36]} Rd4 {[%emt 0:00:13][%cal Od4e4]} 65. Bd3 {[%emt 0:01:39]} Ra4 {[%emt 0:00:50]} 66. Kf2 {[%emt 0:01:05]} Ra2+ {[%emt 0:00:15]} 67. Ke1 {[%emt 0:00:31]} Rg2 {[%emt 0:02:07]} 68. Be4 {[%emt 0:01:03]} Rxg6 $2 {[%emt 0:06:02]} (68... Rb2 $19 {Threatens to win with ...Rb3.} 69. Bd3 Rg2) 69. Bxg6 $11 {[%emt 0:00:19] The position is equal.} Kxg6 $19 {[%emt 0:00:01] KPP-KP} 70. Kf2 {[%emt 0:00:18]} Kf6 {[%emt 0:00:29]} 71. Kf1 {[%emt 0:00:16]} Ke7 {[%emt 0:00:49]} 72. Ke1 {[%emt 0:00:12]} Kd6 {[%emt 0:00:31]} 73. Kd2 $1 {[%emt 0:00:14]} Kc6 {[%emt 0:00:04]} 74. Kc2 $1 {[%emt 0:00:27]} Kb5 {[%emt 0:00:41]} 75. Kd3 {[%emt 0:00:12] Ke4 would be deadly.} Kc5 {[%emt 0:00:30]} 76. Kc3 $1 {[%emt 0:00:07]} Kc6 {[%emt 0:00:14]} 77. Kc2 $1 {[%emt 0:00:11]} Kd5 {[%emt 0:00:49] ( -> ...Kc4)} 78. Kd3 {[%emt 0:00:07]} e4+ {[%emt 0:00:06]} 79. fxe4+ $11 {[%emt 0:00:05] KP-KP} Ke5 {[%emt 0:00:02]} 80. Ke2 {[%emt 0:00:15]} Kxe4 {[%emt 0:00:03]} 81. Kf2 {[%emt 0:00:08][%cal Be2f2,Bf2f1,Bf1e1][%mdl 32]} f3 {[%emt 0:00:03][%cal Bf4f3,Bf3f2][%mdl 32]} 82. Kf1 {[%emt 0:00:05]} Ke3 {[%emt 0:00:03]} (82... Kd3 $5) 83. Ke1 {[%emt 0:00:07]} f2+ {[%emt 0:00:05]} 84. Kf1 {[%emt 0:00:05]} Kf3 {White happily takes the draw.   Weighted Error Value: White=0.25 (precise) /Black=0.15 (very precise)} 1/2-1/2

[Event "Czech Championship U20 Open 2023"]
[Site "Jaromerice nad Rokytnou"]
[Date "2023.03.15"]
[Round "7.6"]
[White "Gnojek, Petr"]
[Black "Smolik, Jachym"]
[Result "1-0"]
[ECO "D20"]
[WhiteElo "2313"]
[BlackElo "2297"]
[Annotator "TA"]
[PlyCount "139"]
[EventDate "2023.03.10"]
[EventType "tourn"]
[EventCountry "CZE"]
[SourceTitle "playchess.com"]
[Source "ChessBase"]
[SourceQuality "1"]
[TimeControl "40/5400+30:1800+30"]

{[%evp 9,139,22,110,48,61,57,175,164,257,242,262,239,208,221,229,183,297,265,267,258,247,235,238,231,277,222,334,339,444,437,440,430,433,102,87,109,88,99,107,97,91,96,83,92,89,86,81,0,0,0,43,0,0,0,0,0,0,0,0,0,0,0,234,204,208,86,82,53,59,47,43,50,52,45,49,49,61,32,55,60,95,95,150,142,161,161,462,462,414,402,499,466,452,437,404,368,12529,12518,12496,12496,12489,12460,12158,11393,12760,10943,12833,12833,12833,12834,12835,12834,12834,12835,12835,12835,12836,12836,12837,12837,12837,12837,12850,27999,27999,27999,27999,27999,27999,27999,27999,27999]} 1. d4 {[%emt 0:00:03]} d5 {[%emt 0:03:29]} 2. c4 {[%emt 0:00:17]} dxc4 {[%emt 0:00:04]} 3. e4 {[%emt 0:01:07]} b5 {[%emt 0:00:07]} 4. a4 {[%emt 0:02:05]} c6 {[%emt 0:00:06]} 5. Nc3 {[%emt 0:03:34]} Qb6 {[%emt 0:08:22]} (5... b4 $11 6. Nce2 e6) 6. Be3 {[%emt 0:10:44] D20: Queen's Gambit Accepted: 3 e3 and 3 e4.} ({White should play} 6. axb5 $16 cxb5 7. b3) 6... b4 {[%emt 0:12:29] 6...e6 is setting a new trend.} 7. a5 {[%emt 0:03:10]} Qa6 {[%emt 0:05:42] [#]} (7... Qd8 $14) 8. Nb1 $146 {[%emt 0:05:35] White is clearly better.} ({Predecessor:} 8. Na4 e6 9. b3 Qxa5 10. Bxc4 Nf6 11. Qf3 Bb7 12. Ne2 Nbd7 13. O-O Qc7 14. Bf4 {½-½ Qualano,B-Saponara,N (1665) Treviso Lega op 1996 (2)}) 8... e5 {[%emt 0:22:07]} (8... c5 $142) 9. dxe5 {[%emt 0:03:05]} Nd7 {[%emt 0:01:35] [#]} 10. e6 {[%emt 0:00:39][%mdl 512]} fxe6 {[%emt 0:02:26]} 11. Nd2 {[%emt 0:00:04]} Ne5 {[%emt 0:08:06]} 12. Qh5+ {[%emt 0:00:07]} Ng6 {[%emt 0:00:03]} (12... Nf7 $142 13. Bxc4 (13. Nxc4 Qb7 $16) 13... Qb7) 13. Bxc4 {[%emt 0:00:27]} ({Less strong is} 13. Nxc4 Nf6 14. Qd1 (14. Qf3 Qb7 $16) 14... Qb7 $16) 13... Qb7 {[%emt 0:00:01]} 14. f4 {[%emt 0:02:37]} Nf6 {[%emt 0:00:17]} 15. Qf3 {[%emt 0:07:20]} Be7 {[%emt 0:01:12]} 16. Nh3 {[%emt 0:00:16]} c5 {[%emt 0:02:05]} 17. O-O {[%emt 0:06:52] Threatens to win with Ng5.} O-O {[%emt 0:01:18]} (17... Qc6 $142 18. Ng5 h6) 18. Ng5 {[%emt 0:00:58]} Qc6 {[%emt 0:06:41]} 19. Qh3 {[%emt 0:00:26]} h6 {[%emt 0:00:19]} 20. Nxe6 {[%emt 0:00:24]} Rf7 {[%emt 0:01:50]} 21. Qg3 $2 {[%emt 0:05:54]} (21. Rad1 $18 {is more deadly.}) 21... Bxe6 $16 {[%emt 0:01:47]} 22. Bxe6 {[%emt 0:00:06]} Qxe6 {[%emt 0:00:02]} 23. Qxg6 {[%emt 0:00:06] aiming for e5.} Qg4 {[%emt 0:03:44]} 24. Qxg4 {[%emt 0:02:08]} (24. f5 {looks sharper.} Bd6 25. Nc4 Bc7 26. Qxg4 Nxg4 27. Bf4) 24... Nxg4 {[%emt 0:00:04]} 25. Nc4 {[%emt 0:00:19][%cal Bd2c4,Bc4e3,Be3d5][%mdl 32]} Nxe3 {[%emt 0:00:56]} 26. Nxe3 {[%emt 0:00:05]} Rd8 {[%emt 0:01:44]} 27. Nd5 {[%emt 0:01:03]} Bf6 {[%emt 0:00:35]} 28. Rab1 {[%emt 0:06:06]} (28. Nxf6+ $16 gxf6 29. Rad1) 28... Bd4+ $11 {[%emt 0:00:43]} 29. Kh1 {[%emt 0:00:04]} Rb7 {[%emt 0:03:26]} 30. Rfd1 {[%emt 0:10:39]} (30. Rfe1 $5 {[%cal Re1e2]}) 30... Re8 {[%emt 0:07:59]} 31. e5 {[%emt 0:01:25]} Rd8 {[%emt 0:01:36]} 32. Ne3 {[%emt 0:00:05]} Rf8 $1 {[%emt 0:00:03]} 33. Re1 $36 {[%mdl 2048] White has the initiative.} Rxf4 {[%emt 0:02:26][%cal Og8f7]} 34. Nd5 {[%emt 0:09:10]} Rf8 {[%emt 0:03:19] ...Rd7 would be deadly.} 35. e6 {[%emt 0:00:10] Inhibits Rd7.} c4 $2 {[%emt 0:00:37]} (35... Re8 $11 {and Black stays safe.}) 36. Re4 {[%emt 0:03:51]} Bf6 {[%emt 0:00:33]} (36... Bxb2 $2 37. e7 Re8 38. Rxb2 $18) 37. Nxf6+ {[%emt 0:02:07]} (37. Rxc4 $18 {has better winning chances. Hoping for a6.} Re8 38. Re4 (38. Nxb4 Rxe6 39. h3 Rb5 $11)) 37... gxf6 $16 {[%emt 0:00:06]} 38. Rxc4 $18 {[%emt 0:00:16][%mdl 4096] Endgame KRR-KRR} Re8 $1 {[%emt 0:00:44]} 39. Re1 {[%emt 0:00:04]} Rb5 $1 {[%emt 0:00:22]} 40. Rg4+ {[%emt 0:03:43]} Kf8 {[%emt 0:00:34]} 41. Rg6 {[%emt 0:30:05][%csl LRf6,LRh6]} Rxa5 {[%emt 0:01:38][%cal Oe8e6]} 42. Rxf6+ {[%emt 0:00:00]} Kg7 {[%emt 0:03:48]} 43. Ref1 {[%emt 0:00:00]} Re5 {[%emt 0:01:27]} 44. Rf7+ {[%emt 0:00:00]} Kg6 {[%emt 0:00:01] White now steadily converts the win.} 45. Rxa7 {[%emt 0:00:00]} R8xe6 {[%emt 0:00:12] [#]} ({Black should try} 45... Re2) 46. Rb7 $1 $16 {[%emt 0:00:00] White is more active.} Re4 {[%emt 0:02:32]} 47. h3 {[%emt 0:00:00]} Re7 $2 {[%emt 0:07:30]} (47... Rd6 48. Rf2 h5) 48. Rxe7 $18 {[%emt 0:00:00]} Rxe7 {[%emt 0:00:01] KR-KR} 49. Rf4 {[%emt 0:00:00]} b3 {[%emt 0:03:54]} 50. Rf3 {[%emt 0:00:00]} Rb7 {[%emt 0:00:23]} 51. Kg1 {[%emt 0:00:00]} Kg5 {[%emt 0:01:05]} 52. Kf2 {[%emt 0:00:00]} h5 $2 {[%emt 0:00:43]} (52... Kh5 53. g3 Rb8) 53. g3 {[%emt 0:00:00]} Rb8 {[%emt 0:02:53]} 54. Ke2 {[%emt 0:00:00]} Re8+ {[%emt 0:01:44]} 55. Kd2 {[%emt 0:00:00]} Rd8+ {[%emt 0:00:10]} 56. Kc3 {[%emt 0:00:00]} Rd1 {[%emt 0:00:05]} 57. Kxb3 {[%emt 0:00:00]} Rh1 {[%emt 0:00:03]} 58. h4+ {[%emt 0:00:00]} Kg4 {[%emt 0:00:04]} 59. Rc3 {[%emt 0:00:00]} Re1 {[%emt 0:02:21]} 60. Ka4 {[%emt 0:00:00]} Ra1+ {[%emt 0:01:03]} 61. Kb5 {[%emt 0:00:00]} Ra8 {[%emt 0:00:08]} 62. b4 {[%emt 0:00:00]} Rb8+ {[%emt 0:00:01]} 63. Ka4 {[%emt 0:00:00]} Ra8+ {[%emt 0:00:04] [#]} 64. Kb3 $1 {[%emt 0:00:00]} Rb8 {[%emt 0:00:05]} 65. Rc5 {[%emt 0:00:00]} Kxg3 {[%emt 0:00:05]} 66. Rxh5 {[%emt 0:00:00]} Kg4 {[%emt 0:00:04] White mates.} 67. Re5 {[%emt 0:00:00]} Kxh4 {[%emt 0:00:35]} 68. b5 {[%emt 0:00:00]} Kg4 {[%emt 0:00:08]} 69. Kb4 {[%emt 0:00:00]} Kf4 {[%emt 0:00:03]} 70. Re1 {[%emt 0:00:00] Weighted Error Value: White=0.23 (precise) /Black=0.36} 1-0

[Event "Czech Championship U20 Open 2023"]
[Site "Jaromerice nad Rokytnou"]
[Date "2023.03.15"]
[Round "8.1"]
[White "Hlavina, Matous"]
[Black "Smolik, Jachym"]
[Result "0-1"]
[ECO "B44"]
[WhiteElo "2091"]
[BlackElo "2297"]
[Annotator "TA"]
[PlyCount "62"]
[EventDate "2023.03.10"]
[EventType "tourn"]
[EventCountry "CZE"]
[SourceTitle "playchess.com"]
[Source "ChessBase"]
[SourceQuality "1"]
[TimeControl "40/5400+30:1800+30"]

{[%evp 10,62,1,0,11,0,0,0,0,0,0,-4,0,-23,-19,-20,-29,-29,-24,-32,-31,-37,-29,-79,-76,-73,-57,-98,-50,-62,-63,-200,-210,-210,-179,-168,-168,-174,-185,-173,-172,-345,-345,-564,-564,-564,-557,-682,-682,-668,-652,-647,-622,-1510,-1236]} 1. e4 {[%emt 0:00:03]} c5 {[%emt 0:00:03]} 2. Nf3 {[%emt 0:00:32]} e6 {[%emt 0:00:03]} 3. d4 {[%emt 0:01:49]} cxd4 {[%emt 0:00:05]} 4. Nxd4 {[%emt 0:00:02]} Nc6 {[%emt 0:00:14]} 5. Nxc6 {[%emt 0:00:24]} bxc6 {[%emt 0:00:05]} 6. Bd3 {[%emt 0:00:22]} d5 $1 {[%emt 0:00:07][%mdl 4] now scores much better than the old 6...Nf6. B44: Sicilian: Taimanov: 5 Nb5.} 7. Qe2 {[%emt 0:01:15]} Nf6 {[%emt 0:00:50]} 8. Nd2 {[%emt 0:01:01]} Be7 {[%emt 0:01:52] The position is equal.} 9. O-O {[%emt 0:00:31]} a5 {[%emt 0:05:20]} 10. c4 {[%emt 0:02:22]} a4 {[%emt 0:06:13] [#]} 11. exd5 $146 {[%emt 0:11:07]} ({Predecessor:} 11. Nf3 O-O 12. Rd1 Bb7 13. Bd2 Nd7 14. Rac1 Bf6 15. cxd5 cxd5 16. Bb4 Re8 17. Bb5 {1-0 Baramidze,D (2550)-Bischoff,K (2555) GER-ch 76th Altenkirchen 2005 (7)}) 11... cxd5 {[%emt 0:00:09]} 12. Nf3 {[%emt 0:00:18]} O-O {[%emt 0:01:44]} 13. Bf4 {[%emt 0:01:34]} Bb7 {[%emt 0:04:44]} 14. Rad1 {[%emt 0:00:35]} Qb6 {[%emt 0:01:49]} 15. Be5 {[%emt 0:06:05]} Rac8 {[%emt 0:03:52][%cal Ba8c8,Bc8c4,Bc4b4,Bb4b3][%mdl 32]} 16. Ng5 {[%emt 0:13:16]} (16. Bd4 $11 Qc7 17. Be5) 16... g6 $17 {[%emt 0:07:40]} 17. cxd5 {[%emt 0:24:12]} Bxd5 {[%emt 0:01:12]} 18. Rfe1 {[%emt 0:07:40]} Rfd8 {[%emt 0:22:57]} (18... Bxa2 $17 19. Ba6 Ra8) 19. Bb1 {[%emt 0:03:48]} Rc4 {[%emt 0:02:35] And now ...Nd7 would win. Dancing on a razor blade.} 20. h3 {[%emt 0:03:12] [#] This costs White the game.} ({Better is} 20. Nf3 $15) 20... Nd7 $1 $19 {[%emt 0:03:32]} 21. Nf3 {[%emt 0:16:07]} Nxe5 {[%emt 0:02:56]} 22. Nxe5 {[%emt 0:00:02]} Rb4 {[%emt 0:00:26]} 23. b3 {[%emt 0:00:57]} axb3 {[%emt 0:00:45]} 24. axb3 {[%emt 0:00:01]} Rxb3 {[%emt 0:01:46] ...Rb2 is the strong threat.} 25. Be4 $2 {[%emt 0:00:54] [#]} (25. Bc2 {was worth a try.} Rb4 26. Rb1) 25... Rb2 $1 {[%emt 0:01:41]} 26. Bc2 $2 {[%emt 0:01:31]} (26. Qf3 Rxf2 27. Nc4 (27. Qxf2 $2 {loses.} Bc5 $19) 27... Rxf3+ 28. Nxb6 Bc5+ 29. Kh2 Bd6+ 30. Kh1 Bxe4 31. Rxe4) 26... Qc7 {[%emt 0:06:20] Black is clearly winning.} 27. Rc1 {[%emt 0:01:04]} Rc8 {[%emt 0:01:53]} 28. Nxf7 {[%emt 0:03:02]} Rxc2 {[%emt 0:00:06]} 29. Rxc2 {[%emt 0:00:09]} Qxc2 {[%emt 0:00:06]} 30. Nh6+ {[%emt 0:00:01]} Kg7 {[%emt 0:00:31] ( -> ...Qxe2)} 31. Qe5+ {[%emt 0:00:07]} Bf6 {[%emt 0:00:09] Weighted Error Value: White=0.61/Black=0.04 (flawless)} 0-1

[Event "Czech Championship U20 Open 2023"]
[Site "Jaromerice nad Rokytnou"]
[Date "2023.03.15"]
[Round "8.2"]
[White "Svanda, Ondrej"]
[Black "Gnojek, Petr"]
[Result "1-0"]
[ECO "B22"]
[WhiteElo "2366"]
[BlackElo "2313"]
[Annotator "TA"]
[PlyCount "73"]
[EventDate "2023.03.10"]
[EventType "tourn"]
[EventCountry "CZE"]
[SourceTitle "playchess.com"]
[Source "ChessBase"]
[SourceQuality "1"]
[TimeControl "40/5400+30:1800+30"]

{[%evp 24,72,37,32,28,10,63,45,60,68,48,10,0,0,155,179,166,154,214,204,220,198,208,208,316,234,377,317,526,387,352,325,743,710,658,599,689,612,29959,29958,2395,887,29984,29985,29992,29989,29997,29998,29998,29999,29999]} 1. e4 {[%emt 0:00:06]} c5 {[%emt 0:00:06]} 2. c3 {[%emt 0:00:04]} Nf6 {[%emt 0:00:05]} 3. e5 {[%emt 0:00:04]} Nd5 {[%emt 0:00:03]} 4. Nf3 {[%emt 0:00:03]} e6 {[%emt 0:00:05]} 5. d4 {[%emt 0:00:08]} cxd4 {[%emt 0:00:04]} 6. cxd4 {[%emt 0:00:04]} d6 {[%emt 0:00:04]} 7. Bc4 {[%emt 0:00:36]} Nc6 {[%emt 0:00:23]} 8. O-O {[%emt 0:00:20]} Be7 {[%emt 0:00:19]} 9. Qe2 {[%emt 0:00:16]} O-O {[%emt 0:04:22]} 10. Rd1 {[%emt 0:01:13]} a6 {[%emt 0:06:58]} 11. Nc3 {[%emt 0:01:39]} Nxc3 {[%emt 0:00:17]} 12. bxc3 {[%emt 0:00:01]} dxe5 {[%emt 0:00:32]} 13. dxe5 {[%emt 0:00:22]} Qa5 {[%emt 0:00:02] [#] B22: Sicilian: 2 c3.} 14. h4 $146 {[%emt 0:03:43][%cal Bh2h4,Bh4h5,Bh5h6][%mdl 32]} (14. Qe4 {is interesting.} Qa4 15. Bg5 h6 16. Bxe7 Nxe7 17. Rd4) ({Predecessor:} 14. Qe4 g6 15. Bh6 Rd8 16. Rxd8+ Qxd8 17. Qf4 Qc7 18. Rd1 Bd7 19. Ng5 Be8 20. Rd6 Rd8 21. Ne4 {1-0 Godena,M (2487)-Kozul,Z (2597) Nova Gorica op 05th 2000 (3)}) 14... Qa4 {[%emt 0:23:06]} (14... Qxc3 $11 15. Bf4 Rd8) 15. h5 {[%emt 0:06:39]} b5 {[%emt 0:06:52] White is slightly better.} 16. Bd3 {[%emt 0:00:17] Threatens to win with Bc2.} Rd8 {[%emt 0:00:11]} 17. Bg5 {[%emt 0:20:19]} (17. Be3 {seems wilder.} Bb7 18. h6 Qg4 19. Bxh7+ Kh8 20. hxg7+ Kxg7 21. Be4) 17... Bb7 {[%emt 0:01:15]} 18. h6 $36 {[%emt 0:02:44][%mdl 2048] aiming for Be4. White is pushing.} g6 $2 {[%emt 0:00:48] White leaves nothing to chance now.} (18... Qg4 $11 19. Qe4 Qxe4 20. Bxe4 Bxg5 21. Nxg5 gxh6 22. Nxh7 Na5) 19. Be4 $16 {[%emt 0:02:28]} Qa3 {[%emt 0:12:17]} 20. Qe3 {[%emt 0:05:56]} Bxg5 {[%emt 0:06:24]} (20... Rac8 $16 21. Qb6 Bxg5) 21. Qxg5 $18 {[%emt 0:00:12][%cal Od1d6] Rd6! would be deadly.} ({Don't take} 21. Nxg5 $6 Qe7 22. Qf4 Na5 $16) 21... Qf8 {[%emt 0:00:02] [#] Prevents Rd6.} 22. Bxc6 $1 {[%emt 0:10:40]} Bxc6 {[%emt 0:00:06] [#]} 23. Nh2 {[%emt 0:00:01][%cal Bf3h2,Bh2g4,Bg4f6][%mdl 32]} a5 {[%emt 0:04:44]} (23... Kh8 {might work better.} 24. Ng4 Bd5) 24. Ng4 {[%emt 0:01:27] Black is weak on the dark squares} a4 {[%emt 0:00:37]} (24... Bd5 $142 25. Nf6+ Kh8) 25. Qf4 {[%emt 0:07:30]} Qe7 $2 {[%emt 0:05:06]} (25... Bd5 26. Nf6+ Kh8) 26. Nf6+ {[%emt 0:05:51]} Kh8 {[%emt 0:00:41]} 27. Rd6 {[%emt 0:00:06]} Bd5 {[%emt 0:02:41]} (27... Rdc8 28. Rad1 Rc7) 28. Nxd5 {[%emt 0:03:29]} exd5 {[%emt 0:00:05]} 29. Rd1 {[%emt 0:00:00][%cal Ba1d1,Bd1d5,Bd5e5][%mdl 32]} Kg8 30. R1xd5 {[%emt 0:00:15] Strongly threatening Qd4.} ({Less strong is} 30. R6xd5 Rab8 31. Rd6 Qf8 $18) 30... Rxd6 {[%emt 0:05:38]} 31. exd6 {[%emt 0:01:39][%cal Be5d6,Bd6d7,Bd7e8][%mdl 32] KQR-KQR} Qe1+ {[%emt 0:00:09]} 32. Kh2 {[%emt 0:00:08] White wants to mate with Qf6.} Qxc3 {[%emt 0:02:29]} 33. d7 {[%emt 0:07:40] White mates.} Rd8 {[%emt 0:00:16]} 34. Re5 {[%emt 0:00:11]} Qc6 {[%emt 0:00:57] [#]} 35. Qf6 $3 {[%emt 0:00:01][%mdl 576] Back Rank, Promotion} Qxf6 {[%emt 0:00:11]} 36. Re8+ {[%emt 0:00:01][%mdl 64] Back Rank} Rxe8 {[%emt 0:00:06]} 37. dxe8=R# {Excellently played by Svanda!   Weighted Error Value: White=0.16 (very precise) /Black=0.88} 1-0